fUST/lending_fUST_20240613
["ID","MTS","AMOUNT","RATE_DAILY","PERIOD"]
[329272645,1718208651585,-9091.39,0.00018628,2]
[329272647,1718208651596,-500.0,0.00018628,2]
[329272649,1718208651608,-1449.83,0.00018628,2]
[329272651,1718208651621,-3088.03,0.00018628,2]
[329272653,1718208651638,-6839.44,0.00018628,2]
[329272655,1718208651649,-500.0,0.00018628,2]
[329272657,1718208651661,-500.0,0.00018628,2]
[329272659,1718208651671,-500.0,0.00018628,2]
[329272661,1718208651683,-500.0,0.00018628,2]
[329272662,1718208651693,-500.0,0.00018629,2]
[329272664,1718208651704,-500.0,0.00018629,2]
[329272666,1718208651740,-500.0,0.00018629,2]
[329272668,1718208651765,-533.98,0.00018629,2]
[329272670,1718208651777,-500.0,0.00018629,2]
[329272672,1718208651791,-500.0,0.00018629,2]
[329272674,1718208651814,-664.49,0.00018629,2]
[329272676,1718208651826,-302.97965784,0.00018629,2]
[329272678,1718208651841,-500.0,0.00018629,2]
[329272680,1718208651852,-500.0,0.00018629,2]
[329272682,1718208651864,-666.16,0.00018629,2]
[329272684,1718208651874,-1004.22,0.00018629,2]
[329272686,1718208651885,-950.61,0.00018629,2]
[329272688,1718208651896,-1547.82,0.00018629,2]
[329272690,1718208651908,-500.0,0.00018629,2]
[329272693,1718208651921,-996.98,0.00018629,2]
[329272695,1718208651931,-2773.2,0.00018629,2]
[329272697,1718208651942,-500.0,0.00018629,2]
[329272699,1718208651955,-1799.38,0.00018629,2]
[329272701,1718208651966,-589.64,0.00018629,2]
[329272703,1718208651978,-487.09082643,0.00018629,2]
[329272705,1718208651990,-151.0,0.00018629,2]
[329272707,1718208652001,-3731.39,0.00018629,2]
[329272709,1718208652012,-500.0,0.00018629,2]
[329272711,1718208652023,-162.403018,0.00018629,2]
[329272712,1718208652034,-162.403018,0.00018629,2]
[329272714,1718208652047,-370.156419,0.00018629,2]
[329272716,1718208652057,-370.156419,0.00018629,2]
[329272718,1718208652067,-5286.37,0.00018629,2]
[329272720,1718208652082,-500.0,0.00018629,2]
[329272722,1718208652094,-151.0,0.00018629,2]
[329272724,1718208652106,-500.0,0.0001863,2]
[329272726,1718208652117,-581.9,0.0001863,2]
[329272728,1718208652127,-250.0,0.0001863,2]
[329272730,1718208652138,-155.0,0.0001872,2]
[329272732,1718208652149,-184.087165,0.00018728,2]
[329272735,1718208652161,-151.0,0.00018746,2]
[329272737,1718208652172,-782.27132238,0.00018799,2]
[329272739,1718208652183,-812.16299288,0.000188,2]
[329272741,1718208652194,-19310.35733687,0.000188,2]
[329272743,1718208652204,-153.0,0.00018822,2]
[329272745,1718208652215,-153.0,0.00018822,2]
[329272747,1718208652225,-153.0,0.00018822,2]
[329272749,1718208652236,-158.06356,0.0001888,2]
[329272751,1718208652246,-706.86651403,0.000189,2]
[329272752,1718208652256,-160.0,0.000189,2]
[329272754,1718208652266,-159.98692822,0.00018902,2]
[329272756,1718208652276,-1518.16131932,0.00018902,2]
[329272759,1718208652288,-643.61,0.00018902,2]
[329272760,1718208652301,-1005.92,0.00018902,2]
[329272763,1718208652331,-500.0,0.00018902,2]
[329272767,1718208652380,-669.31,0.00018902,2]
[329272768,1718208652394,-734.81,0.00018902,2]
[329272770,1718208652407,-9091.39,0.00018902,2]
[329272772,1718208652419,-500.0,0.00018902,2]
[329272773,1718208652432,-1449.83,0.00018902,2]
[329272775,1718208652444,-3088.03,0.00018902,2]
[329272777,1718208652461,-6839.44,0.00018902,2]
[329272779,1718208652472,-500.0,0.00018902,2]
[329272781,1718208652483,-500.0,0.00018902,2]
[329272783,1718208652498,-500.0,0.00018902,2]
[329272785,1718208652511,-500.0,0.00018902,2]
[329272787,1718208652523,-316.85472816,0.00018903,13]
[329272789,1718208652535,-2260.61257325,0.00018903,2]
[329272791,1718208652547,-500.0,0.00018903,2]
[329272792,1718208652559,-500.0,0.00018903,2]
[329272793,1718208652569,-500.0,0.00018903,2]
[329272795,1718208652580,-533.98,0.00018903,2]
[329272797,1718208652596,-500.0,0.00018903,2]
[329272799,1718208652615,-500.0,0.00018903,2]
[329272801,1718208652636,-664.49,0.00018903,2]
[329272803,1718208652647,-500.0,0.00018903,2]
[329272805,1718208652657,-500.0,0.00018903,2]
[329272808,1718208652681,-666.16,0.00018903,2]
[329272810,1718208652710,-1004.22,0.00018903,2]
[329272813,1718208652773,-950.61,0.00018903,2]
[329272824,1718208652894,-1547.82,0.00018903,2]
[329272826,1718208652910,-500.0,0.00018903,2]
[329272827,1718208652921,-996.98,0.00018903,2]
[329272829,1718208652931,-2773.2,0.00018903,2]
[329272831,1718208652943,-500.0,0.00018903,2]
[329272833,1718208652954,-1799.38,0.00018903,2]
[329272835,1718208652971,-589.64,0.00018903,2]
[329272837,1718208653003,-3731.39,0.00018903,2]
[329272838,1718208653028,-500.0,0.00018903,2]
[329272840,1718208653053,-5286.37,0.00018903,2]
[329272842,1718208653067,-500.0,0.00018903,2]
[329272844,1718208653106,-507.44215869,0.00018904,2]
[329272846,1718208653121,-581.9,0.00018904,2]
[329272848,1718208653134,-542.1,0.00018955,2]
[329272850,1718208653148,-151.0,0.00018955,2]
[329272852,1718208653162,-151.0,0.00018956,2]
[329272854,1718208653173,-162.403018,0.00018956,2]
[329272856,1718208653186,-162.403018,0.00018956,2]
[329272858,1718208653197,-370.156419,0.00018956,2]
[329272860,1718208653215,-370.156419,0.00018956,2]
[329272862,1718208653241,-345.163434,0.00018956,2]
[329272865,1718208653278,-399.39067,0.00018956,2]
[329272867,1718208653291,-172.581718,0.00018956,2]
[329272869,1718208653304,-297.828184,0.00018956,2]
[329272872,1718208653324,-172.581717,0.00018956,2]
[329272874,1718208653344,-345.163434,0.00018956,2]
[329272876,1718208653355,-399.39067,0.00018956,2]
[329272878,1718208653369,-399.39067,0.00018956,2]
[329272880,1718208653382,-345.163435,0.00018956,2]
[329272882,1718208653396,-299.200039,0.00018956,2]
[329272884,1718208653413,-276.130747,0.00018956,2]
[329272885,1718208653433,-276.130748,0.00018956,2]
[329272887,1718208653446,-333.054201,0.00018956,2]
[329272889,1718208653466,-777.89782886,0.00018987,2]
[329272891,1718208653479,-20669.78383422,0.00019,2]
[329272899,1718208653635,-997.67541242,0.00019,2]
[329272913,1718208653948,-500.0,0.00016711,2]
[329272914,1718208653962,-500.0,0.00017259,2]
[329272916,1718208653979,-500.0,0.00017533,2]
[329272918,1718208653991,-500.0,0.00017807,2]
[329272920,1718208654005,-500.0,0.00018081,2]
[329272921,1718208654022,-500.0,0.00018081,2]
[329272923,1718208654035,-500.0,0.00018355,2]
[329272925,1718208654051,-500.0,0.00018355,2]
[329272927,1718208654069,-500.0,0.00018629,2]
[329272929,1718208654089,-500.0,0.00018629,2]
[329272931,1718208654101,-500.0,0.00018903,2]
[329272933,1718208654114,-500.0,0.00018903,2]
[329272935,1718208654130,-28332.54075336,0.00019,2]
[329272937,1718208654144,-29104.8454564,0.00019,2]
[329272954,1718208654440,-503.01188397,0.00019,2]
[329272956,1718208654454,-3712.4932469,0.00019,2]
[329272958,1718208654477,-16679.64941273,0.00019,2]
[329272960,1718208654488,-163.14541634,0.00019,2]
[329272963,1718208654521,-31349.17662963,0.00019,2]
[329272965,1718208654577,-4084.82337037,0.00019,2]
[329272967,1718208654594,-7270.73643792,0.00019,2]
[329272969,1718208654616,-1000.0,0.00019,2]
[329272971,1718208654639,-151.0,0.00019,2]
[329272972,1718208654656,-162.403018,0.00019,2]
[329272974,1718208654673,-162.403018,0.00019,2]
[329272976,1718208654696,-370.156419,0.00019,2]
[329272977,1718208654739,-370.156419,0.00019,2]
[329272980,1718208654774,-151.0,0.00019,2]
[329272981,1718208654803,-542.1,0.00019164,2]
[329272983,1718208654818,-151.0,0.00019164,2]
[329272986,1718208654841,-643.61,0.00019176,2]
[329272988,1718208654871,-1005.92,0.00019176,2]
[329272989,1718208654884,-500.0,0.00019176,2]
[329272991,1718208654899,-669.31,0.00019176,2]
[329272994,1718208654916,-734.81,0.00019176,2]
[329272996,1718208654948,-9091.39,0.00019176,2]
[329272998,1718208654962,-500.0,0.00019176,2]
[329273000,1718208654977,-1449.83,0.00019176,2]
[329273002,1718208654992,-3088.03,0.00019176,2]
[329273004,1718208655006,-877.23489615,0.00019176,2]
[329273035,1718208655646,-500.0,0.0001671,2]
[329273036,1718208655657,-18.07256041,0.0001671,2]
[329273037,1718208655675,-481.92743959,0.0001671,2]
[329273039,1718208655688,-500.0,0.00016711,2]
[329273040,1718208655703,-500.0,0.00016711,2]
[329273042,1718208655737,-500.0,0.00016984,2]
[329273044,1718208655753,-500.0,0.00016984,2]
[329273047,1718208655786,-500.0,0.00016985,2]
[329273050,1718208655812,-453.23399143,0.00016985,2]
[329273051,1718208655834,-500.0,0.00017258,2]
[329273053,1718208655846,-500.0,0.00017259,2]
[329273055,1718208655861,-500.0,0.00017532,2]
[329273057,1718208655874,-500.0,0.00017533,2]
[329273059,1718208655891,-500.0,0.00017806,2]
[329273061,1718208655908,-500.0,0.00017807,2]
[329273063,1718208655920,-500.0,0.0001808,2]
[329273065,1718208655932,-500.0,0.00018354,2]
[329273067,1718208655943,-500.0,0.00018628,2]
[329273069,1718208655954,-500.0,0.00018902,2]
[329273070,1718208655965,-4008.94856897,0.00019176,2]
[329274469,1718209678793,9905.62,0.000131,2]
[329274470,1718209746999,7853.0178578,0.000131,2]
[329274471,1718209774285,-1911.81558845,0.00013599,2]
[329274472,1718209774309,-1767.8072357,0.000136,2]
[329274540,1718209833601,-272.851688,0.00013933,2]
[329274543,1718209833613,-3000.0,0.00014512,2]
[329274546,1718209833624,-782.27132238,0.00014587,2]
[329274549,1718209833634,-300.0,0.00014588,2]
[329274552,1718209833645,-24890.0,0.00014589,2]
[329274555,1718209833656,-936.25773762,0.00015746,2]
[329274558,1718209833667,-159.98692822,0.00015846,2]
[329274561,1718209833678,-1518.16131932,0.00015846,2]
[329274564,1718209833689,-6.36436116,0.00015846,2]
[329274893,1718209848618,-296.97223984,0.00015846,2]
[329274895,1718209848630,-722.49195225,0.00015846,2]
[329274897,1718209848641,-690.8836,0.00015846,2]
[329274899,1718209848653,-1442.34664303,0.00015846,2]
[329274901,1718209848664,-317.55665125,0.00015846,2]
[329274902,1718209848675,-765.44214177,0.00015846,2]
[329274904,1718209848686,-1282.24587467,0.00015846,2]
[329274906,1718209848696,-272.44132449,0.00015846,2]
[329274908,1718209848707,-2260.61257325,0.00015846,2]
[329274909,1718209848719,-420.0,0.00016046,2]
[329274911,1718209848730,-500.0,0.00016438,2]
[329274913,1718209848744,-500.0,0.00016438,2]
[329274915,1718209848755,-500.0,0.00016438,2]
[329274917,1718209848767,-500.0,0.00016438,2]
[329274919,1718209848779,-500.0,0.00016438,2]
[329274921,1718209848789,-500.0,0.00016438,2]
[329274923,1718209848800,-500.0,0.00016438,2]
[329274924,1718209848810,-500.0,0.00016438,2]
[329274925,1718209848821,-500.0,0.00016438,2]
[329274926,1718209848836,-500.0,0.00016438,2]
[329274927,1718209848853,-500.0,0.00016438,2]
[329274928,1718209848868,-395.63674927,0.00016438,2]
[329274929,1718209848878,-500.0,0.00016438,2]
[329274930,1718209848889,-500.0,0.00016438,2]
[329274931,1718209848901,-500.0,0.00016438,2]
[329274932,1718209848915,-500.0,0.00016438,2]
[329274933,1718209848926,-500.0,0.00016438,2]
[329274934,1718209848936,-500.0,0.00016438,2]
[329274935,1718209848947,-500.0,0.00016438,2]
[329274936,1718209848957,-639.73,0.00016438,2]
[329274937,1718209848968,-500.0,0.00016438,2]
[329274938,1718209848979,-500.0,0.00016438,2]
[329274939,1718209848990,-500.0,0.00016438,2]
[329274940,1718209849000,-500.0,0.00016438,2]
[329274941,1718209849011,-500.0,0.00016438,2]
[329274942,1718209849021,-500.0,0.00016438,2]
[329274943,1718209849031,-500.0,0.00016438,2]
[329274944,1718209849042,-759.14,0.00016438,2]
[329274945,1718209849052,-500.0,0.00016438,2]
[329274947,1718209849066,-500.0,0.00016438,2]
[329274948,1718209849076,-560.33177319,0.00016438,2]
[329274951,1718209849087,-500.0,0.00016438,2]
[329274953,1718209849099,-500.0,0.00016438,2]
[329274955,1718209849129,-702.74,0.00016438,2]
[329274957,1718209849141,-2098.87,0.00016438,2]
[329274959,1718209849152,-1082.56,0.00016438,2]
[329274961,1718209849164,-5630.57,0.00016438,2]
[329274963,1718209849176,-652.32,0.00016438,2]
[329274965,1718209849187,-500.0,0.00016438,2]
[329274967,1718209849198,-742.19,0.00016438,2]
[329274969,1718209849209,-500.0,0.00016438,2]
[329274971,1718209849219,-500.0,0.00016438,2]
[329274973,1718209849232,-500.0,0.00016438,2]
[329274975,1718209849242,-500.0,0.00016438,2]
[329274977,1718209849253,-500.0,0.00016438,2]
[329274979,1718209849268,-500.0,0.00016438,2]
[329274981,1718209849280,-500.0,0.00016438,2]
[329274983,1718209849291,-500.0,0.00016438,2]
[329274985,1718209849302,-500.0,0.00016438,2]
[329274987,1718209849312,-500.0,0.00016438,2]
[329274989,1718209849324,-500.0,0.00016438,2]
[329274991,1718209849335,-500.0,0.00016438,2]
[329274993,1718209849346,-500.0,0.00016438,2]
[329274995,1718209849361,-500.0,0.00016438,2]
[329274997,1718209849372,-500.0,0.00016438,2]
[329274999,1718209849383,-4130.68,0.00016438,2]
[329275001,1718209849393,-500.0,0.00016438,2]
[329275003,1718209849403,-500.0,0.00016438,2]
[329275006,1718209849414,-2340.24806757,0.00016438,2]
[329275008,1718209849429,-6918.20193243,0.00016438,2]
[329275010,1718209849439,-500.0,0.00016438,2]
[329275012,1718209849451,-500.0,0.00016438,2]
[329275014,1718209849461,-643.56004769,0.00016438,2]
[329275016,1718209849471,-1586.88,0.00016438,2]
[329275018,1718209849482,-500.0,0.00016438,2]
[329275020,1718209849493,-3156.51,0.00016438,2]
[329275022,1718209849504,-500.0,0.00016438,2]
[329275024,1718209849514,-500.0,0.00016438,2]
[329275026,1718209849524,-500.0,0.00016438,2]
[329275028,1718209849537,-500.0,0.00016438,2]
[329275030,1718209849549,-651.71,0.00016438,2]
[329275032,1718209849561,-500.0,0.00016438,2]
[329275034,1718209849572,-7318.37,0.00016438,2]
[329275036,1718209849582,-500.0,0.00016438,2]
[329275038,1718209849593,-500.0,0.00016438,2]
[329275040,1718209849607,-500.0,0.00016438,2]
[329275042,1718209849618,-500.0,0.00016438,2]
[329275044,1718209849628,-500.0,0.00016438,2]
[329275046,1718209849638,-500.0,0.00016438,2]
[329275048,1718209849649,-643.06,0.00016438,2]
[329275050,1718209849658,-500.0,0.00016438,2]
[329275052,1718209849668,-500.0,0.00016438,2]
[329275054,1718209849679,-910.12,0.00016438,2]
[329275056,1718209849689,-500.0,0.00016438,2]
[329275058,1718209849699,-500.0,0.00016438,2]
[329275060,1718209849710,-500.0,0.00016438,2]
[329275061,1718209849721,-500.0,0.00016438,2]
[329275063,1718209849732,-500.0,0.00016438,2]
[329275065,1718209849743,-579.35301352,0.00016438,2]
[329275068,1718209849757,-1682.09,0.00016438,2]
[329275070,1718209849770,-500.0,0.00016438,2]
[329275071,1718209849781,-305.36070266,0.00016438,2]
[329275073,1718209849791,-500.0,0.00016438,2]
[329275075,1718209849802,-500.0,0.00016438,2]
[329275077,1718209849812,-500.0,0.00016438,2]
[329275079,1718209849822,-500.0,0.00016438,2]
[329275081,1718209849832,-500.0,0.00016438,2]
[329275083,1718209849844,-500.0,0.00016438,2]
[329275086,1718209849864,-500.0,0.00016438,2]
[329275088,1718209849880,-500.0,0.00016438,2]
[329275090,1718209849893,-1161.33,0.00016438,2]
[329275092,1718209849905,-500.0,0.00016438,2]
[329275093,1718209849916,-500.0,0.00016438,2]
[329275095,1718209849926,-500.0,0.00016438,2]
[329275097,1718209849936,-500.0,0.00016438,2]
[329275099,1718209849946,-500.0,0.00016438,2]
[329275101,1718209849956,-500.0,0.00016438,2]
[329275103,1718209849967,-500.0,0.00016438,2]
[329275105,1718209849977,-500.0,0.00016438,2]
[329275107,1718209849987,-744.84,0.00016438,2]
[329275109,1718209849998,-500.0,0.00016438,2]
[329275110,1718209850008,-500.0,0.00016438,2]
[329275112,1718209850018,-500.0,0.00016438,2]
[329275114,1718209850028,-500.0,0.00016438,2]
[329275117,1718209850038,-500.0,0.00016438,2]
[329275120,1718209850049,-3003.03,0.00016438,2]
[329275122,1718209850061,-1020.82,0.00016438,2]
[329275124,1718209850071,-500.0,0.00016438,2]
[329275126,1718209850081,-500.0,0.00016438,2]
[329275128,1718209850091,-424.11990845,0.00016609,2]
[329275130,1718209850105,-500.0,0.00016708,2]
[329275131,1718209850127,-500.0,0.00016709,2]
[329275133,1718209850141,-500.0,0.00016709,2]
[329275135,1718209850155,-500.0,0.00016709,2]
[329275137,1718209850166,-500.0,0.00016709,2]
[329275139,1718209850176,-500.0,0.00016709,2]
[329275141,1718209850187,-500.0,0.00016709,2]
[329275143,1718209850196,-500.0,0.00016709,2]
[329275145,1718209850207,-500.0,0.00016709,2]
[329275148,1718209850220,-500.0,0.00016709,2]
[329275149,1718209850232,-500.0,0.00016709,2]
[329275152,1718209850242,-500.0,0.00016709,2]
[329275154,1718209850253,-500.0,0.00016709,2]
[329275156,1718209850263,-500.0,0.00016709,2]
[329275157,1718209850275,-500.0,0.00016709,2]
[329275159,1718209850286,-500.0,0.00016709,2]
[329275161,1718209850296,-500.0,0.00016709,2]
[329275164,1718209850307,-500.0,0.00016709,2]
[329275166,1718209850317,-595.78227432,0.00016709,2]
[329275168,1718209850327,-500.0,0.00016709,2]
[329275169,1718209850339,-500.0,0.00016709,2]
[329275171,1718209850356,-245.95849232,0.00016709,2]
[329275173,1718209850370,-500.0,0.00016709,2]
[329275175,1718209850381,-500.0,0.00016709,2]
[329275177,1718209850394,-500.0,0.00016709,2]
[329275179,1718209850408,-500.0,0.00016709,2]
[329275181,1718209850421,-500.0,0.00016709,2]
[329275183,1718209850432,-500.0,0.00016709,2]
[329275185,1718209850443,-500.0,0.00016709,2]
[329275187,1718209850455,-647.06983541,0.00016709,2]
[329275189,1718209850466,-500.0,0.00016709,2]
[329275191,1718209850479,-500.0,0.00016709,2]
[329275193,1718209850492,-500.0,0.00016709,2]
[329275195,1718209850504,-500.0,0.00016709,2]
[329275197,1718209850515,-500.0,0.00016709,2]
[329275199,1718209850526,-500.0,0.00016709,2]
[329275201,1718209850536,-500.0,0.00016709,2]
[329275203,1718209850546,-500.0,0.00016709,2]
[329275205,1718209850557,-500.0,0.00016709,2]
[329275207,1718209850568,-588.21665389,0.00016709,2]
[329275209,1718209850578,-500.0,0.00016709,2]
[329275211,1718209850589,-500.0,0.00016709,2]
[329275213,1718209850598,-500.0,0.00016709,2]
[329275215,1718209850613,-500.0,0.00016709,2]
[329275217,1718209850623,-587.51633867,0.00016709,2]
[329275219,1718209850633,-500.0,0.00016709,2]
[329275221,1718209850643,-500.0,0.00016709,2]
[329275223,1718209850654,-249.04097137,0.00016709,2]
[329275225,1718209850667,-500.0,0.00016709,2]
[329275227,1718209850677,-647.2507586,0.00016709,2]
[329275229,1718209850687,-500.0,0.00016709,2]
[329275231,1718209850698,-500.0,0.00016709,2]
[329275233,1718209850709,-500.0,0.00016709,2]
[329275235,1718209850721,-509.48965602,0.00016709,2]
[329275237,1718209850735,-500.0,0.00016709,2]
[329275239,1718209850747,-500.0,0.00016709,2]
[329275241,1718209850758,-500.0,0.00016709,2]
[329275243,1718209850769,-500.0,0.00016709,2]
[329275245,1718209850780,-500.0,0.00016709,2]
[329275247,1718209850795,-500.0,0.00016709,2]
[329275248,1718209850805,-250.0,0.00016709,2]
[329275251,1718209850817,-500.0,0.00016709,4]
[329275253,1718209850828,-500.0,0.00016709,2]
[329275255,1718209850839,-500.0,0.00016709,2]
[329275257,1718209850849,-500.0,0.00016709,2]
[329275259,1718209850864,-500.0,0.00016709,2]
[329275260,1718209850876,-500.0,0.00016709,2]
[329275262,1718209850885,-500.0,0.00016709,2]
[329275265,1718209850898,-500.0,0.00016709,2]
[329275267,1718209850913,-558.09172296,0.00016709,2]
[329275269,1718209850924,-500.0,0.00016709,2]
[329275271,1718209850937,-600.4938574,0.00016709,2]
[329275273,1718209850948,-500.0,0.00016709,2]
[329275275,1718209850962,-500.07468102,0.00016709,2]
[329275277,1718209850973,-500.0,0.00016709,2]
[329275279,1718209850985,-511.82330992,0.00016709,2]
[329275281,1718209850995,-500.0,0.00016709,2]
[329275283,1718209851007,-500.0,0.00016709,2]
[329275285,1718209851019,-500.0,0.00016709,2]
[329275287,1718209851031,-500.0,0.00016709,2]
[329275289,1718209851042,-500.0,0.00016709,2]
[329275291,1718209851053,-500.0,0.00016709,2]
[329275293,1718209851068,-500.0,0.00016709,2]
[329275295,1718209851078,-500.0,0.00016709,2]
[329275297,1718209851089,-500.0,0.00016709,2]
[329275299,1718209851099,-500.0,0.00016709,2]
[329275301,1718209851130,-500.0,0.00016709,2]
[329275303,1718209851145,-500.0,0.0001671,2]
[329275305,1718209851156,-500.0,0.0001671,2]
[329275307,1718209851166,-500.0,0.0001671,2]
[329275309,1718209851177,-500.0,0.0001671,2]
[329275311,1718209851187,-500.0,0.0001671,2]
[329275313,1718209851199,-375.84953288,0.0001671,2]
[329275319,1718209851268,-500.0,0.00016709,2]
[329275321,1718209851280,-124.15046712,0.0001671,2]
[329275323,1718209851291,-644.45,0.0001671,2]
[329275325,1718209851302,-500.0,0.0001671,2]
[329275327,1718209851314,-540.04,0.0001671,2]
[329275329,1718209851325,-500.0,0.0001671,2]
[329275331,1718209851338,-500.0,0.0001671,2]
[329275333,1718209851354,-500.0,0.0001671,2]
[329275335,1718209851366,-500.0,0.00016711,2]
[329275337,1718209851377,-500.0,0.00016711,2]
[329275339,1718209851387,-500.0,0.00016711,2]
[329275341,1718209851398,-500.0,0.00016712,2]
[329275343,1718209851408,-500.0,0.00016712,2]
[329275345,1718209851420,-535.47,0.00016712,2]
[329275347,1718209851432,-500.0,0.00016712,2]
[329275349,1718209851444,-500.0,0.00016712,2]
[329275351,1718209851456,-500.0,0.00016712,2]
[329275353,1718209851467,-500.0,0.00016712,2]
[329275355,1718209851477,-84.37544281,0.00016712,2]
[329275357,1718209851492,-415.62455719,0.00016712,2]
[329275359,1718209851504,-500.0,0.00016712,2]
[329275361,1718209851514,-61.01671665,0.00016712,2]
[329275369,1718209851590,-438.98328335,0.00016712,2]
[329275371,1718209851604,-500.0,0.00016712,2]
[329275373,1718209851616,-639.73,0.00016712,2]
[329275375,1718209851626,-500.0,0.00016712,2]
[329275377,1718209851637,-500.0,0.00016712,2]
[329275379,1718209851647,-500.0,0.00016712,2]
[329275381,1718209851658,-205.46331933,0.00016712,2]
[329275383,1718209851669,-500.0,0.00016712,2]
[329275385,1718209851681,-759.14,0.00016712,2]
[329275387,1718209851692,-500.0,0.00016712,2]
[329275389,1718209851703,-500.0,0.00016712,2]
[329275390,1718209851713,-500.0,0.00016712,2]
[329275392,1718209851724,-500.0,0.00016712,2]
[329275394,1718209851736,-702.74,0.00016712,2]
[329275397,1718209851748,-2098.87,0.00016712,2]
[329275399,1718209851760,-1082.56,0.00016712,2]
[329275400,1718209851771,-5630.57,0.00016712,2]
[329275402,1718209851782,-652.32,0.00016712,2]
[329275404,1718209851793,-742.19,0.00016712,2]
[329275406,1718209851805,-500.0,0.00016712,2]
[329275408,1718209851816,-500.0,0.00016712,2]
[329275410,1718209851826,-500.0,0.00016712,2]
[329275412,1718209851837,-500.0,0.00016712,2]
[329275414,1718209851855,-500.0,0.00016712,2]
[329275417,1718209851868,-500.0,0.00016712,2]
[329275419,1718209851879,-202.24,0.00016712,2]
[329275421,1718209851889,-4130.68,0.00016712,2]
[329275423,1718209851899,-9258.45,0.00016712,2]
[329275425,1718209851909,-1586.88,0.00016712,2]
[329275427,1718209851919,-3156.51,0.00016712,2]
[329275429,1718209851929,-500.0,0.00016712,2]
[329275431,1718209851941,-500.0,0.00016712,2]
[329275432,1718209851951,-651.71,0.00016712,2]
[329275446,1718209852103,-3204.89575508,0.00016712,2]
[329275449,1718209852154,-4113.47424492,0.00016712,2]
[329275451,1718209852164,-500.0,0.00016712,2]
[329275453,1718209852175,-500.0,0.00016712,2]
[329275456,1718209852186,-183.77532896,0.00016712,2]
[329275552,1718209855419,-449.81751298,0.00016438,2]
[329275553,1718209855433,-4931.81248702,0.00016438,2]
[329275554,1718209855444,-316.22467104,0.00016712,2]
[329275555,1718209855454,-500.0,0.00016712,2]
[329275556,1718209855465,-643.06,0.00016712,2]
[329275557,1718209855476,-910.12,0.00016712,2]
[329275558,1718209855487,-500.0,0.00016712,2]
[329275559,1718209855499,-500.0,0.00016712,2]
[329275560,1718209855511,-1682.09,0.00016712,2]
[329275561,1718209855522,-500.0,0.00016712,2]
[329275562,1718209855533,-500.0,0.00016712,2]
[329275563,1718209855543,-500.0,0.00016712,2]
[329275564,1718209855553,-500.0,0.00016712,2]
[329275565,1718209855563,-1161.33,0.00016712,2]
[329275566,1718209855574,-500.0,0.00016712,2]
[329275567,1718209855585,-500.0,0.00016712,2]
[329275568,1718209855596,-500.0,0.00016712,2]
[329275569,1718209855608,-500.0,0.00016712,2]
[329275570,1718209855618,-500.0,0.00016712,2]
[329275571,1718209855629,-744.84,0.00016712,2]
[329275572,1718209855640,-500.0,0.00016712,2]
[329275573,1718209855650,-500.0,0.00016712,2]
[329275574,1718209855661,-3003.03,0.00016712,2]